bitfinex-derivatives/quotes_BTCF0:USTF0_20250602
["timestamp","ask_amount","ask_price","bid_price","bid_amount"]
[1748831403905,2.35344269,105340.0,105330.0,0.00014228]
[1748831404306,0.1898118,105320.0,105310.0,0.34608391]
[1748831404501,0.1898118,105320.0,105310.0,0.53566452]
[1748831404502,0.48286414,105320.0,105310.0,0.53566452]
[1748831404806,0.12206414,105320.0,105310.0,1.16646452]
[1748831405109,0.21067769,105320.0,105310.0,1.19182785]
[1748831405302,0.12206414,105320.0,105310.0,1.20469649]
[1748831405503,0.12218414,105320.0,105310.0,1.28289474]
[1748831406210,0.12218414,105320.0,105310.0,1.2944551]
[1748831406412,0.12218414,105320.0,105310.0,1.3286551]
[1748831406609,0.12218414,105320.0,105310.0,1.36487763]
[1748831406807,0.12218414,105320.0,105310.0,1.36887763]
[1748831407309,0.12218414,105320.0,105310.0,1.39191524]
[1748831407911,0.31199594,105320.0,105310.0,1.39191524]
[1748831409320,0.12218414,105320.0,105310.0,1.39191524]
[1748831410003,0.12218414,105320.0,105310.0,2.89191524]
[1748831412213,0.12206414,105320.0,105310.0,2.89191524]
[1748831412413,0.12218414,105320.0,105310.0,2.89191524]
[1748831413308,0.01938414,105320.0,105310.0,2.89191524]
[1748831413504,0.01938414,105320.0,105310.0,2.90962699]
[1748831413904,0.01938414,105320.0,105310.0,2.95358376]
[1748831414108,0.01926414,105320.0,105310.0,2.95358376]
[1748831414309,0.01938414,105320.0,105310.0,2.95358376]
[1748831414614,0.01938414,105320.0,105310.0,3.05358376]
[1748831415611,0.01938414,105320.0,105310.0,3.05358337]
[1748831416509,0.01938414,105320.0,105310.0,3.06567244]
[1748831417614,0.01926414,105320.0,105310.0,3.10654409]
[1748831417808,0.01926414,105320.0,105310.0,3.35654409]
[1748831418011,0.01938414,105320.0,105310.0,3.45149609]
[1748831418212,0.01938414,105320.0,105310.0,3.20149609]
[1748831418409,0.00012,105320.0,105310.0,1.70149609]
[1748831418711,0.00014228,105330.0,105320.0,0.1898118]
[1748831418915,0.99462193,105360.0,105330.0,0.0474446]
[1748831419113,1.04205773,105360.0,105350.0,0.30513831]
[1748831419414,1.16727773,105360.0,105350.0,0.1897577]
[1748831419621,1.16727773,105360.0,105350.0,0.2833577]
[1748831419622,1.28265834,105360.0,105350.0,0.2833577]
[1748831419914,1.28265834,105360.0,105350.0,0.2528577]
[1748831420115,1.28565834,105360.0,105350.0,0.2528577]
[1748831420505,1.16450693,105360.0,105350.0,0.2528577]
[1748831420711,1.16750693,105360.0,105350.0,0.2528577]
[1748831421117,1.16450693,105360.0,105350.0,0.2209577]
[1748831421317,1.16550693,105360.0,105350.0,0.2209577]
[1748831421513,0.1897578,105350.0,105340.0,0.3717769]
[1748831421721,0.39923841,105350.0,105340.0,0.44606441]
[1748831422223,0.6446578,105350.0,105340.0,0.44606441]
[1748831422917,0.6446578,105350.0,105340.0,0.47936441]
[1748831423219,0.6446578,105350.0,105340.0,0.59574502]
[1748831423415,0.3608,105350.0,105340.0,0.75574502]
[1748831423616,1.32284042,105360.0,105350.0,0.1897578]
[1748831423819,1.44576042,105360.0,105350.0,0.2595978]
[1748831424424,1.39832162,105360.0,105350.0,0.2595978]
[1748831425023,1.39832162,105360.0,105350.0,0.2995978]
[1748831425325,1.39932162,105360.0,105350.0,0.2995978]
[1748831425523,1.51470223,105360.0,105350.0,0.2995978]
[1748831425921,1.51570223,105360.0,105350.0,0.2995978]
[1748831427224,0.94244162,105360.0,105350.0,0.2995978]
[1748831427418,0.94244162,105360.0,105350.0,0.3321978]
[1748831428320,0.94244162,105360.0,105350.0,0.2995978]
[1748831429712,0.94244162,105360.0,105350.0,0.3307978]
[1748831429915,0.94244162,105360.0,105350.0,0.44617841]
[1748831430516,0.94244162,105360.0,105350.0,0.3307978]
[1748831431527,0.79208662,105360.0,105350.0,0.44617841]
[1748831431828,1.32828472,105360.0,105350.0,0.2671978]
[1748831432022,0.97828472,105360.0,105350.0,0.2344978]
[1748831432220,0.1897578,105350.0,105340.0,0.00014228]
[1748831432424,0.1897578,105350.0,105340.0,0.18991808]
[1748831432425,1.57816099,105350.0,105340.0,0.18991808]
[1748831432626,1.66677454,105350.0,105340.0,0.18991808]
[1748831433225,1.28677454,105350.0,105340.0,0.18991808]
[1748831433428,1.66677454,105350.0,105340.0,0.19091808]
[1748831434327,1.66677454,105350.0,105340.0,0.21495808]
[1748831434328,1.60443393,105350.0,105340.0,0.21495808]
[1748831434924,1.71981454,105350.0,105340.0,0.21495808]
[1748831435136,1.71981454,105350.0,105340.0,0.19495808]
[1748831435525,1.75251454,105350.0,105340.0,0.19495808]
[1748831435931,1.30701393,105350.0,105340.0,0.20495808]
[1748831436430,1.30713393,105350.0,105340.0,0.20495808]
[1748831436729,0.86989393,105350.0,105340.0,0.20495808]
[1748831436935,0.78128038,105350.0,105340.0,0.20495808]
[1748831437536,0.67836038,105350.0,105340.0,0.20495808]
[1748831437834,0.89943179,105350.0,105340.0,0.20495808]
[1748831438428,1.3448124,105350.0,105340.0,0.20495808]
[1748831438634,1.2418924,105350.0,105340.0,0.20495808]
[1748831438933,1.0148124,105350.0,105340.0,0.20495808]
[1748831443940,0.89943179,105350.0,105340.0,0.23545808]
[1748831444628,1.04648504,105350.0,105340.0,0.23545808]
[1748831445031,0.89943179,105350.0,105340.0,0.23545808]
[1748831445929,0.89943179,105350.0,105340.0,0.29755808]
[1748831454639,0.1907546,105350.0,105340.0,0.79500068]
[1748831454838,0.1907546,105350.0,105340.0,0.79499819]
[1748831454839,0.1908746,105350.0,105340.0,0.79499819]
[1748831455039,0.1908746,105350.0,105340.0,2.29499819]
[1748831455837,0.3806324,105350.0,105340.0,2.29499819]
[1748831456029,0.1908746,105350.0,105340.0,2.29499819]
[1748831456839,0.1908746,105350.0,105340.0,2.33121904]
[1748831457143,0.1907546,105350.0,105340.0,2.33121904]
[1748831457446,0.1908746,105350.0,105340.0,2.33121904]
[1748831459145,0.1908746,105350.0,105340.0,2.37327956]
[1748831459448,0.1908746,105350.0,105340.0,2.33122006]
[1748831460833,0.7746324,105350.0,105340.0,2.33122006]
[1748831461032,0.95171301,105350.0,105340.0,0.53583945]
[1748831461344,1.28171301,105350.0,105340.0,0.17518228]
[1748831461539,0.86307841,105350.0,105340.0,0.00518228]
[1748831461747,1.32122982,105350.0,105340.0,0.00518228]
[1748831463847,1.32122982,105350.0,105340.0,0.19495808]
[1748831466036,1.32122982,105350.0,105340.0,0.00518228]
[1748831469754,1.32122982,105350.0,105340.0,0.19495808]
[1748831470346,1.32122982,105350.0,105340.0,0.00518228]
[1748831473952,1.68202982,105350.0,105340.0,0.00518228]
[1748831476564,2.11886982,105350.0,105340.0,0.00518228]
[1748831477644,2.11886982,105350.0,105340.0,0.19495798]
[1748831477844,1.77886982,105350.0,105340.0,0.00518228]
[1748831478160,2.08886982,105350.0,105340.0,0.00518228]
[1748831482656,1.54990982,105350.0,105340.0,0.00518228]
[1748831482854,2.08874982,105350.0,105340.0,0.00518228]
[1748831483657,2.10817493,105350.0,105340.0,0.00518228]
[1748831485051,2.10817493,105350.0,105340.0,0.19495808]
[1748831486251,2.10817493,105350.0,105340.0,0.00518228]
[1748831486956,1.99002352,105350.0,105340.0,0.00518228]
[1748831487353,2.19589808,105350.0,105340.0,0.00518228]
[1748831487554,2.29082608,105350.0,105340.0,0.00518228]
[1748831487854,0.1897938,105330.0,105320.0,0.2230089]
[1748831488157,0.1897938,105330.0,105310.0,1.65914994]
[1748831488158,0.1898118,105320.0,105310.0,0.24133062]
[1748831488359,1.06959241,105320.0,105310.0,0.34871074]
[1748831488554,1.06959241,105320.0,105310.0,0.30673062]
[1748831488756,1.06959241,105320.0,105310.0,0.28901887]
[1748831489455,1.115943,105320.0,105310.0,0.28901887]
[1748831489854,1.12525353,105320.0,105310.0,0.28901887]
[1748831490457,1.12525353,105320.0,105310.0,0.03928907]
[1748831490656,1.12625353,105320.0,105310.0,0.04428907]
[1748831491557,0.1898298,105310.0,105300.0,0.00026228]
[1748831491858,1.77479214,105310.0,105300.0,0.00026228]
[1748831492056,1.80455412,105310.0,105300.0,0.00026228]
[1748831492272,1.92244295,105310.0,105300.0,0.00026228]
[1748831492454,1.77470387,105310.0,105300.0,0.00026228]
[1748831492653,1.77470387,105310.0,105300.0,0.00526228]
[1748831493462,1.77470387,105310.0,105300.0,0.00226228]
[1748831493854,1.77470387,105310.0,105300.0,0.00626228]
[1748831493855,1.77570387,105310.0,105300.0,0.00626228]
[1748831494161,0.1898479,105300.0,105290.0,0.0932]
[1748831494366,1.29474006,105300.0,105290.0,0.2830659]
[1748831494959,1.29474006,105300.0,105290.0,0.0932]
[1748831495163,1.32179795,105300.0,105290.0,0.03122]
[1748831495553,1.32379795,105300.0,105290.0,0.00112]
[1748831495751,1.32379795,105300.0,105290.0,0.001]
[1748831495953,1.32379795,105300.0,105290.0,0.00112]
[1748831496151,1.32179795,105300.0,105290.0,0.00112]
[1748831496361,1.32379795,105300.0,105290.0,0.00112]
[1748831496556,1.32379795,105300.0,105290.0,0.00586]
[1748831496958,1.32479795,105300.0,105290.0,0.00586]
[1748831497152,1.41301629,105300.0,105290.0,0.00586]
[1748831497958,1.18225507,105300.0,105290.0,0.00586]
[1748831498160,1.89347179,105300.0,105290.0,0.00586]
[1748831498362,1.77809118,105300.0,105290.0,0.00586]
[1748831498661,1.23853118,105300.0,105290.0,0.00586]
[1748831498865,1.77809118,105300.0,105290.0,0.00586]
[1748831500467,1.68987284,105300.0,105290.0,0.00586]
[1748831503168,1.80525345,105300.0,105290.0,0.00586]
[1748831503664,1.15031284,105300.0,105290.0,0.00586]
[1748831503970,0.61243223,105300.0,105290.0,0.2285259]
[1748831504168,0.6559278,105300.0,105290.0,0.37470651]
[1748831504672,1.0932878,105300.0,105290.0,0.37470651]
[1748831504874,1.0934078,105300.0,105290.0,0.37470651]
[1748831505474,1.4434078,105300.0,105290.0,0.37470651]
[1748831505971,1.4434078,105300.0,105290.0,0.2593259]
[1748831506767,0.36392,105300.0,105290.0,0.37470651]
[1748831506968,0.10528,105300.0,105290.0,0.48470651]
[1748831507172,0.10516,105300.0,105290.0,0.74470651]
[1748831507367,0.10528,105300.0,105290.0,0.74470651]
[1748831508074,0.2951279,105300.0,105290.0,0.74470651]
[1748831508270,0.6558079,105300.0,105290.0,0.6293259]
[1748831508475,0.6559279,105300.0,105290.0,0.6293259]
[1748831508962,0.10528,105300.0,105290.0,0.74470651]
[1748831509167,0.46596,105300.0,105290.0,0.74458651]
[1748831509476,0.46608,105300.0,105290.0,0.74470651]
[1748831509677,0.6559279,105300.0,105290.0,0.74470651]
[1748831510472,0.46608,105300.0,105290.0,0.74470651]
[1748831511373,0.6559279,105300.0,105290.0,0.74470651]
[1748831514073,0.46608,105300.0,105290.0,0.74470651]
[1748831514776,0.4664,105300.0,105290.0,0.74470651]
[1748831515473,0.6562479,105300.0,105290.0,0.74470651]
[1748831518275,0.4664,105300.0,105290.0,0.74470651]
[1748831518984,0.6562479,105300.0,105290.0,0.74470651]
[1748831519187,0.6562479,105300.0,105290.0,0.6293259]
[1748831519377,0.6562479,105300.0,105290.0,0.74470651]
[1748831520183,0.6562479,105300.0,105290.0,0.78092736]
[1748831520483,0.4664,105300.0,105290.0,0.78092736]
[1748831520678,0.6562479,105300.0,105290.0,0.78092736]
[1748831520883,0.4664,105300.0,105290.0,0.78092736]
[1748831521084,0.6562479,105300.0,105290.0,0.78092736]
[1748831522679,0.4664,105300.0,105290.0,0.78092736]
[1748831524178,0.1056,105300.0,105290.0,0.78092736]
[1748831524373,0.00312,105300.0,105290.0,1.10550651]
[1748831524684,0.003,105300.0,105290.0,1.14991741]
[1748831524880,0.00312,105300.0,105290.0,1.73859887]
[1748831525180,0.00312,105300.0,105290.0,1.63529188]
[1748831525181,0.003,105300.0,105290.0,1.63529188]
[1748831525379,0.00312,105300.0,105290.0,1.63529188]
[1748831525778,0.003,105300.0,105290.0,3.13529188]
[1748831526082,0.003,105300.0,105290.0,3.48026388]
[1748831526285,0.00312,105300.0,105290.0,3.48024497]
[1748831526684,0.00312,105300.0,105290.0,3.46816812]
[1748831526880,0.00312,105300.0,105290.0,3.62713046]
[1748831527183,0.00312,105300.0,105290.0,3.67542493]
[1748831527586,0.00312,105300.0,105290.0,3.62713046]
[1748831527887,0.00312,105300.0,105290.0,3.88888343]
[1748831528083,0.00312,105300.0,105290.0,3.7638846]
[1748831528291,0.00014228,105310.0,105300.0,0.2072831]
[1748831528482,0.00014228,105310.0,105300.0,1.18864622]
[1748831528683,0.00014228,105310.0,105300.0,1.07326561]
[1748831528883,0.00014228,105310.0,105300.0,3.08947734]
[1748831529292,0.00226228,105310.0,105300.0,3.08947734]
[1748831529688,0.00226228,105310.0,105300.0,3.08951734]
[1748831529894,0.00426228,105310.0,105300.0,3.09051734]
[1748831530091,0.03586228,105310.0,105300.0,3.12672622]
[1748831530495,0.22569218,105310.0,105300.0,2.69438622]
[1748831530696,0.03586228,105310.0,105300.0,3.08705259]
[1748831530898,0.03386228,105310.0,105300.0,3.08605259]
[1748831531096,0.03486228,105310.0,105300.0,3.08905259]
[1748831531600,0.06516228,105310.0,105300.0,3.08905259]
[1748831532098,0.06316228,105310.0,105300.0,3.09305259]
[1748831536498,0.25299218,105310.0,105300.0,2.58503042]
[1748831536807,0.06316228,105310.0,105300.0,3.1856655]
[1748831537306,0.06316228,105310.0,105300.0,3.13737103]
[1748831537514,0.06316228,105310.0,105300.0,2.70041103]
[1748831537713,0.06316228,105310.0,105300.0,3.13733103]
[1748831539316,0.06316228,105310.0,105300.0,3.09293259]
[1748831539526,0.06316228,105310.0,105300.0,3.13733702]
[1748831543720,0.06316228,105310.0,105300.0,3.13734732]
[1748831544022,0.06316228,105310.0,105300.0,2.70042732]
[1748831544323,0.06316228,105310.0,105300.0,3.13722732]
[1748831545319,0.00126228,105310.0,105300.0,3.31157027]
[1748831545519,0.00126228,105310.0,105300.0,3.32365586]
[1748831545721,0.00126228,105310.0,105300.0,3.41243707]
[1748831545922,0.00114228,105310.0,105300.0,3.41243707]
[1748831546118,0.00126228,105310.0,105300.0,3.41243707]
[1748831546416,0.00126228,105310.0,105300.0,3.32365586]
[1748831546621,0.00126228,105310.0,105300.0,3.20827525]
[1748831546823,0.00126228,105310.0,105300.0,3.32365586]
[1748831547921,0.00126228,105310.0,105300.0,3.20827525]
[1748831548122,0.00126228,105310.0,105300.0,3.20828664]
[1748831548325,0.03406228,105310.0,105300.0,3.20828664]
[1748831549214,0.06486228,105310.0,105300.0,3.20828664]
[1748831551320,0.06486228,105310.0,105300.0,3.29706785]
[1748831551623,0.06486228,105310.0,105300.0,3.20828664]
[1748831551814,0.06486228,105310.0,105300.0,3.25264173]
[1748831555129,0.06486228,105310.0,105300.0,3.36802234]
[1748831555620,0.03206228,105310.0,105300.0,3.36802234]
[1748831556021,0.03206228,105310.0,105300.0,3.25264173]
[1748831556526,0.03206228,105310.0,105300.0,3.19367939]
[1748831556728,0.03206228,105310.0,105300.0,3.14538492]
[1748831556928,0.00126228,105310.0,105300.0,3.14538492]
[1748831557613,0.00126228,105310.0,105300.0,3.26076553]
[1748831558128,0.00126228,105310.0,105300.0,3.32121087]
[1748831558425,0.00126228,105310.0,105300.0,2.88441087]
[1748831558726,0.00126228,105310.0,105300.0,3.20599026]
[1748831559129,0.00126228,105310.0,105300.0,3.24694909]
[1748831559513,0.00126228,105310.0,105300.0,3.14554492]
[1748831560327,0.00126228,105310.0,105300.0,3.24694881]
[1748831560525,0.00126228,105310.0,105300.0,3.1315682]
[1748831561028,0.00126228,105310.0,105300.0,3.2469486]
[1748831564033,0.19109208,105310.0,105300.0,2.69460799]
[1748831564229,0.72571795,105310.0,105300.0,0.79582067]
[1748831564733,0.72571795,105310.0,105300.0,2.29582067]
[1748831565324,0.53588815,105310.0,105300.0,2.25133508]
[1748831565528,0.53588815,105310.0,105300.0,2.41120321]
[1748831565832,0.72571805,105310.0,105300.0,2.41120321]
[1748831567739,0.72571805,105310.0,105300.0,0.91120321]
[1748831568224,0.53588815,105310.0,105300.0,2.41120321]
[1748831568634,0.53588815,105310.0,105300.0,0.91120321]
[1748831569730,0.72571805,105310.0,105300.0,0.91120321]
[1748831570230,0.36491805,105310.0,105300.0,0.91120321]
[1748831570432,0.72571805,105310.0,105300.0,0.91120321]
[1748831570628,0.72571805,105310.0,105300.0,0.7321226]
[1748831570833,1.16251805,105310.0,105300.0,0.43191031]
[1748831574338,1.16251805,105310.0,105300.0,0.46819193]
[1748831575633,1.16251805,105310.0,105300.0,0.33075673]
[1748831575634,1.59789866,105310.0,105300.0,0.33075673]
[1748831575829,1.64733267,105310.0,105300.0,0.24607542]
[1748831576027,1.64733267,105310.0,105300.0,0.2015879]
[1748831576729,1.67700316,105310.0,105300.0,0.2015879]
[1748831576935,2.02196716,105310.0,105300.0,0.01174]
[1748831577442,2.12440716,105310.0,105300.0,0.01174]
[1748831577643,0.1898479,105300.0,105290.0,0.3322425]
[1748831577831,0.76152851,105300.0,105290.0,0.4622425]
[1748831578034,0.6461479,105300.0,105290.0,0.4622425]
[1748831578239,0.9861479,105300.0,105290.0,0.4622425]
[1748831578547,0.6461479,105300.0,105290.0,0.4622425]
[1748831579238,0.6471479,105300.0,105290.0,0.4712425]
[1748831579435,0.70716304,105300.0,105290.0,0.4712425]
[1748831579635,0.79572613,105300.0,105290.0,0.4712425]
[1748831580039,0.79472613,105300.0,105290.0,0.4682425]
[1748831580636,0.79472613,105300.0,105290.0,0.4207766]
[1748831580836,1.13472613,105300.0,105290.0,0.4207766]
[1748831581050,1.13372613,105300.0,105290.0,0.4157766]
[1748831581337,0.79472613,105300.0,105290.0,0.4157766]
[1748831581542,1.13472613,105300.0,105290.0,0.4157766]
[1748831583043,1.13472613,105300.0,105290.0,0.131]
[1748831583044,1.36548735,105300.0,105290.0,0.131]
[1748831583347,1.22041734,105300.0,105290.0,0.00586]
[1748831583534,1.33579795,105300.0,105290.0,0.00586]
[1748831583735,1.33579795,105300.0,105290.0,0.00574]
[1748831583930,1.33579795,105300.0,105290.0,0.00586]
[1748831584140,1.33579795,105300.0,105290.0,0.00486]
[1748831584347,1.33679795,105300.0,105290.0,0.00486]
[1748831584738,1.22241734,105300.0,105290.0,0.00586]
[1748831585445,0.1898659,105290.0,105280.0,0.00223195]
[1748831585641,1.71587931,105290.0,105280.0,0.00223195]
[1748831586059,0.1899199,105260.0,105250.0,1.93819252]
[1748831586237,0.35101286,105260.0,105250.0,0.77889252]
[1748831586546,0.3844799,105260.0,105250.0,0.82338847]
[1748831586739,0.3844799,105260.0,105250.0,0.85348847]
[1748831586740,0.75503315,105260.0,105250.0,0.85348847]
[1748831587147,0.75503315,105260.0,105250.0,0.72842267]
[1748831587148,1.25041376,105260.0,105250.0,0.72842267]
[1748831587740,1.25041376,105260.0,105250.0,0.72830267]
[1748831587946,1.25041376,105260.0,105250.0,0.72842267]
[1748831588137,1.29832555,105260.0,105250.0,0.73042267]
[1748831588544,1.29832555,105260.0,105250.0,0.48111038]
[1748831589144,0.79419169,105260.0,105250.0,0.48711038]
[1748831589346,0.79419169,105260.0,105250.0,0.39831636]
[1748831589546,1.12354696,105260.0,105250.0,0.42991636]
[1748831589745,1.23892757,105260.0,105250.0,0.26243636]
[1748831589944,1.2295723,105260.0,105250.0,0.26243636]
[1748831590843,1.2295723,105260.0,105250.0,0.01009026]
[1748831591340,1.2295723,105260.0,105250.0,0.01021026]
[1748831591540,1.2295723,105260.0,105250.0,0.01009026]
[1748831591950,1.2295723,105260.0,105250.0,0.01021026]
[1748831592549,1.2285723,105260.0,105250.0,0.00421026]
[1748831592752,1.2295723,105260.0,105250.0,0.00421026]
[1748831593650,1.2305723,105260.0,105250.0,0.00321026]
[1748831594049,0.8697723,105260.0,105250.0,0.00321026]
[1748831594249,1.60068853,105260.0,105250.0,0.00321026]
[1748831597051,1.48530792,105260.0,105250.0,0.19314816]
[1748831597353,1.60068853,105260.0,105250.0,0.19314816]
[1748831597541,1.48530792,105260.0,105250.0,0.22404816]
[1748831597741,1.48530792,105260.0,105250.0,0.25564816]
[1748831598157,1.48530792,105260.0,105250.0,0.37102877]
[1748831598158,1.57362792,105260.0,105250.0,0.37102877]
[1748831598347,1.12583169,105260.0,105250.0,0.37102877]
[1748831598555,1.56443169,105260.0,105250.0,0.37102877]
[1748831599255,1.89443169,105260.0,105250.0,0.37102877]
[1748831599454,1.56443169,105260.0,105250.0,0.37102877]
[1748831600046,1.56443169,105260.0,105250.0,0.25564816]
[1748831601754,0.84283169,105260.0,105250.0,0.25564816]
[1748831601953,0.70375169,105260.0,105250.0,0.37102877]
[1748831602154,1.0957199,105260.0,105250.0,0.43102877]
[1748831603351,1.21110051,105260.0,105250.0,0.31564816]
[1748831603558,1.30580051,105260.0,105250.0,0.31564816]
[1748831604052,1.1904199,105260.0,105250.0,0.25564816]
[1748831604354,0.6484199,105260.0,105250.0,0.25564816]
[1748831604655,1.67576051,105260.0,105250.0,0.25552806]
[1748831604854,1.67576051,105260.0,105250.0,0.25564806]
[1748831605957,1.44294832,105260.0,105250.0,0.25564806]
[1748831606555,1.35294832,105260.0,105250.0,0.25564806]
[1748831606760,1.68294832,105260.0,105250.0,0.25564806]
[1748831608167,1.44294832,105260.0,105250.0,0.25564806]
[1748831608460,1.66294832,105260.0,105250.0,0.25564806]
[1748831608959,1.31756771,105260.0,105250.0,0.25564806]
[1748831609551,1.37624928,105260.0,105250.0,0.25564806]
[1748831610056,1.37624928,105260.0,105250.0,0.25552806]
[1748831610562,1.37624928,105260.0,105250.0,0.25624806]
[1748831611856,1.37624928,105260.0,105250.0,0.28914806]
[1748831612255,1.46427163,105260.0,105250.0,0.28914806]
[1748831612655,1.02543163,105260.0,105250.0,0.28914806]
[1748831612854,1.46399163,105260.0,105250.0,0.28914806]
[1748831613055,1.46399163,105260.0,105250.0,0.40452867]
[1748831613056,0.06168157,105260.0,105250.0,0.40452867]
[1748831613256,0.16480157,105260.0,105250.0,0.81532867]
[1748831613557,0.16480157,105260.0,105250.0,1.01532867]
[1748831613956,0.16480157,105260.0,105250.0,1.0597303]
[1748831615063,0.10612,105260.0,105250.0,1.0597303]
[1748831615260,0.10612,105260.0,105250.0,1.09601192]
[1748831615963,0.2960398,105260.0,105250.0,1.09601192]
[1748831616866,0.2960398,105260.0,105250.0,1.05161029]
[1748831617061,0.2960398,105260.0,105250.0,1.05980243]
[1748831617361,0.2960398,105260.0,105250.0,1.01532867]
[1748831617362,0.10612,105260.0,105250.0,1.01532867]
[1748831617568,0.10612,105260.0,105250.0,1.07425932]
[1748831617758,0.2960398,105260.0,105250.0,1.07425932]
[1748831617957,0.2960398,105260.0,105250.0,1.01532867]
[1748831618560,0.003,105260.0,105250.0,1.01532867]
[1748831618863,0.06168157,105260.0,105250.0,1.01532867]
[1748831620864,0.06168157,105260.0,105250.0,1.49868243]
[1748831621064,0.003,105260.0,105250.0,1.49868243]
[1748831621367,0.003,105260.0,105250.0,1.53494119]
[1748831622760,0.003,105260.0,105250.0,1.49865957]
[1748831623064,0.003,105260.0,105250.0,1.55794924]
[1748831623268,0.003,105260.0,105250.0,1.65794924]
[1748831623468,0.003,105260.0,105250.0,1.69423086]
[1748831623871,0.003,105260.0,105250.0,1.57885025]
[1748831624169,0.003,105260.0,105250.0,1.59865957]
[1748831624360,0.003,105260.0,105250.0,3.09865957]
[1748831625166,0.003,105260.0,105250.0,3.13494119]
[1748831626974,0.003,105260.0,105250.0,3.24263055]
[1748831627565,0.003,105260.0,105250.0,3.19817965]
[1748831627874,0.003,105260.0,105250.0,3.33760751]
[1748831629162,0.003,105260.0,105250.0,3.30116589]
[1748831630078,0.003,105260.0,105250.0,3.25674603]
[1748831630472,0.003,105260.0,105250.0,3.3011631]
[1748831630973,0.003,105260.0,105250.0,3.43397641]
[1748831631774,0.003,105260.0,105250.0,3.33896841]
[1748831633881,0.003,105260.0,105250.0,3.2232278]
[1748831634070,0.003,105260.0,105250.0,3.33860841]
[1748831634476,0.003,105260.0,105250.0,3.33860068]
[1748831637071,0.003,105260.0,105250.0,3.29419134]
[1748831637780,0.003,105260.0,105250.0,3.19419134]
[1748831638180,0.003,105260.0,105250.0,3.29419134]
[1748831639272,0.003,105260.0,105250.0,3.24579165]
[1748831639579,0.003,105260.0,105250.0,3.29413091]
[1748831640180,0.003,105260.0,105250.0,3.24579165]
[1748831640486,0.10326228,105270.0,105260.0,0.1899198]
[1748831640781,0.00014228,105270.0,105260.0,1.2244851]
[1748831641173,0.00014228,105270.0,105260.0,2.89915538]
[1748831641477,0.00014228,105270.0,105260.0,2.93920378]
[1748831641671,0.020035,105280.0,105270.0,0.1899017]
[1748831641866,0.020035,105280.0,105270.0,1.68356692]
[1748831642079,0.020035,105280.0,105270.0,1.72800074]
[1748831642483,0.020035,105280.0,105270.0,1.77591716]
[1748831642873,0.020035,105280.0,105270.0,1.77791716]
[1748831643981,0.021035,105280.0,105270.0,1.77991716]
[1748831644684,0.021035,105280.0,105270.0,1.83920683]
[1748831644983,0.021035,105280.0,105270.0,1.8488541]
[1748831645582,0.021035,105280.0,105270.0,1.93725008]
[1748831645782,0.00172,105280.0,105270.0,1.89281626]
[1748831646177,0.00014228,105290.0,105280.0,0.1898837]
[1748831646481,0.00014228,105290.0,105280.0,1.20087396]
[1748831646691,0.002,105300.0,105290.0,0.1898657]
[1748831646882,0.002,105300.0,105290.0,1.64621814]
[1748831647394,0.002,105300.0,105290.0,1.59790561]
[1748831647685,0.00212,105300.0,105290.0,1.59790561]
[1748831648088,0.00212,105300.0,105290.0,1.15958561]
[1748831648286,0.07002,105300.0,105290.0,1.16058561]
[1748831648589,0.07002,105300.0,105290.0,1.55462071]
[1748831648789,0.07002,105300.0,105290.0,1.55474071]
[1748831649087,0.2598676,105300.0,105290.0,1.11630071]
[1748831649488,0.2598676,105300.0,105290.0,1.52720071]
[1748831650285,0.2578676,105300.0,105290.0,0.9430201]
[1748831650585,0.2578676,105300.0,105290.0,1.05840071]
[1748831652093,0.2578676,105300.0,105290.0,2.55840071]
[1748831652592,0.2578676,105300.0,105290.0,2.4430201]
[1748831652794,0.2578676,105300.0,105290.0,2.52216631]
[1748831654689,0.2578676,105300.0,105290.0,2.4067857]
[1748831654888,0.2578676,105300.0,105290.0,2.52216631]
[1748831655695,0.2578676,105300.0,105290.0,1.02216631]
[1748831655993,0.2578676,105300.0,105290.0,2.52216631]
[1748831657088,0.2578676,105300.0,105290.0,1.02216631]
[1748831657496,0.2578676,105300.0,105290.0,2.52216631]
[1748831657796,0.2578676,105300.0,105290.0,2.16136631]
[1748831658698,0.6186676,105300.0,105290.0,2.16136631]
[1748831659598,0.5868676,105300.0,105290.0,2.16136631]
[1748831660889,0.5537676,105300.0,105290.0,2.16136631]
[1748831665192,0.1929676,105300.0,105290.0,2.16136631]
[1748831665393,0.5537676,105300.0,105290.0,2.16136631]
[1748831666896,0.61271533,105300.0,105290.0,2.16136631]
[1748831668293,0.70073768,105300.0,105290.0,2.16136631]
[1748831669298,0.64178995,105300.0,105290.0,2.16136631]
[1748831671903,0.28098995,105300.0,105290.0,2.16136631]
[1748831672496,0.28098995,105300.0,105290.0,2.52216631]
[1748831672696,0.09102235,105300.0,105290.0,2.52216631]
[1748831672899,0.09102235,105300.0,105290.0,2.16136631]
[1748831673203,0.09114235,105300.0,105290.0,2.16136631]
[1748831674301,0.20920775,105300.0,105290.0,2.16136631]
[1748831675410,0.1211854,105300.0,105290.0,2.16136631]
[1748831677093,0.1211854,105300.0,105290.0,2.20967884]
[1748831677299,0.1509917,105300.0,105290.0,2.31339307]
[1748831678100,0.1508717,105300.0,105290.0,2.67419307]
[1748831678500,0.1509917,105300.0,105290.0,2.67419307]
[1748831685517,0.1509917,105300.0,105290.0,2.67419307]
[1748831685709,0.1509917,105300.0,105290.0,2.718706]
[1748831685904,0.1509917,105300.0,105290.0,2.67420218]
[1748831687109,0.1509917,105300.0,105290.0,2.71052493]
[1748831687309,0.1509917,105300.0,105290.0,2.65131452]
[1748831687906,0.3408393,105300.0,105290.0,2.65131452]
[1748831690123,0.3408393,105300.0,105290.0,2.29051452]
[1748831690513,0.3408393,105300.0,105290.0,0.67513391]
[1748831690715,0.3408393,105300.0,105290.0,0.62670138]
[1748831690914,0.3408393,105300.0,105290.0,0.62682138]
[1748831691119,0.28169062,105300.0,105290.0,0.62682138]
[1748831691311,0.28169062,105300.0,105290.0,0.58230845]
[1748831691624,0.60169062,105300.0,105290.0,0.58230845]
[1748831692310,0.36169062,105300.0,105290.0,0.5459857]
[1748831693421,0.36169062,105300.0,105290.0,0.66136631]
[1748831694015,0.72249062,105300.0,105290.0,0.66136631]
[1748831697322,0.72249062,105300.0,105290.0,0.41136631]
[1748831699223,0.72249062,105300.0,105290.0,0.2959857]
[1748831699422,0.75519062,105300.0,105290.0,0.3271857]
[1748831699817,0.75519062,105300.0,105290.0,0.36350845]
[1748831701221,0.67519062,105300.0,105290.0,0.36350845]
[1748831701427,0.86325602,105300.0,105290.0,0.3271857]
[1748831702118,0.89465602,105300.0,105290.0,0.3571857]
[1748831702324,0.92495602,105300.0,105290.0,0.3896857]
[1748831703028,0.92495602,105300.0,105290.0,0.2896857]
[1748831703216,0.92495602,105300.0,105290.0,0.2895657]
[1748831703521,1.35033663,105300.0,105290.0,0.00612]
[1748831703710,2.01180622,105300.0,105290.0,0.006]
[1748831703918,2.14374082,105300.0,105290.0,0.00612]
[1748831704115,0.1898655,105290.0,105280.0,0.00014228]